bitfinex-derivatives/quotes_ETHF0:USTF0_20250910
["timestamp","ask_amount","ask_price","bid_price","bid_amount"]
[1757487832618,0.8681,4316.0,4315.9,0.3911]
[1757487837630,0.8681,4316.0,4315.4,0.233]
[1757487837924,0.8681,4316.0,3675.0,0.5]
[1757487837925,0.8683,4315.0,4314.9,35.08326068]
[1757487838120,0.8683,4315.0,4314.9,35.31626068]
[1757487838326,0.537,4315.0,4314.9,35.31626068]
[1757487838526,0.3214,4315.0,4314.9,35.31626068]
[1757487839631,0.5469,4315.5,4315.4,0.6983]
[1757487840123,0.8683,4315.5,4315.4,0.6983]
[1757487840327,0.1268,4316.0,4315.5,0.3072]
[1757487840527,0.5467,4316.5,4316.4,0.3911]
[1757487840725,0.5467,4316.5,4316.4,0.1965]
[1757487840933,0.5467,4316.5,4316.1,0.3072]
[1757487841128,0.5467,4316.5,4316.4,0.1965]
[1757487841327,0.5467,4316.5,4316.4,0.6983]
[1757487841723,0.8681,4316.5,4316.4,0.6983]
[1757487844646,0.8681,4316.5,4316.4,0.3911]
[1757487845744,0.7413,4316.2,4316.1,0.1965]
[1757487846234,0.8683,4316.0,4315.9,0.4295]
[1757487846440,0.8683,4316.0,4315.9,0.1965]
[1757487848339,0.8683,4316.0,4315.9,1.22526542]
[1757487853238,0.8683,4316.0,4315.9,1.72706542]
[1757487853743,0.537,4316.0,4315.9,1.72706542]
[1757487854750,0.3214,4316.0,4315.9,1.72706542]
[1757487860051,0.5298,4316.0,4315.9,1.72706542]
[1757487860252,0.8699,4316.0,4315.9,1.72706542]
[1757487860451,0.8699,4316.0,4315.9,1.41986542]
[1757487861351,0.8699,4316.0,4315.9,1.02876542]
[1757487861548,0.8699,4316.0,4315.9,0.233]
[1757487861852,0.7438,4315.7,4315.6,1.24136542]
[1757487862055,0.7438,4315.7,4315.6,1.47436542]
[1757487862452,0.7438,4315.7,4315.6,1.67996542]
[1757487863356,0.7438,4315.7,4315.6,1.98426542]
[1757487865055,0.7438,4315.7,4315.6,1.47436542]
[1757487865855,0.7438,4315.7,4315.3,2.3815908]
[1757487866053,0.5485,4315.5,4315.3,2.0772908]
[1757487866258,0.7438,4315.2,4315.1,2.2898908]
[1757487866459,0.7438,4315.2,4315.1,4.06155622]
[1757487867353,0.3219,4315.2,4315.1,4.06155622]
[1757487867554,0.1266,4315.5,4315.3,0.4182]
[1757487867855,0.7438,4315.4,4315.3,0.7225]
[1757487868956,0.7438,4315.4,4315.3,1.75126542]
[1757487872650,0.5303,4315.9,4315.8,0.2126]
[1757487872856,0.7438,4315.9,4315.8,1.24136542]
[1757487875161,0.7438,4315.9,4315.8,0.2126]
[1757487875363,0.7438,4315.9,4315.5,1.26176542]
[1757487875564,0.4219,4315.6,4315.5,1.47436542]
[1757487875864,0.7438,4315.6,4315.5,1.47436542]
[1757487876061,0.7438,4315.6,4315.5,1.67996542]
[1757487876259,0.7438,4315.6,4315.5,1.98426542]
[1757487879067,0.7438,4315.6,4315.5,1.67996542]
[1757487880064,0.7438,4315.6,4315.5,1.98426542]
[1757487881874,0.5303,4315.6,4315.5,1.98426542]
[1757487882774,0.7438,4315.6,4315.5,1.98426542]
[1757487884277,0.7438,4315.6,4315.5,1.67996542]
[1757487888879,0.7438,4315.6,4315.5,1.97376542]
[1757487890083,0.7438,4315.6,4315.5,1.67996542]
[1757487890480,0.7438,4315.6,4315.5,0.6512]
[1757487891176,0.7438,4315.6,4315.5,0.4456]
[1757487891382,0.7438,4315.6,4315.5,0.233]
[1757487893288,0.7438,4315.6,4315.5,0.4444]
[1757487898093,0.7233,4315.2,4315.1,2.0772908]
[1757487898389,0.8496,4315.0,4314.9,2.2886908]
[1757487898792,0.8496,4315.0,4314.9,2.7770908]
[1757487899783,0.8496,4315.0,4314.9,2.96662832]
[1757487900188,0.1263,4315.5,4315.0,0.2938]
[1757487900394,0.8496,4315.5,4315.4,0.6998]
[1757487900591,0.8496,4315.5,4315.4,0.406]
[1757487901291,0.8496,4315.5,4315.4,0.6998]
[1757487901685,0.8496,4315.5,4315.4,0.406]
[1757487902488,0.6403,4315.0,4314.9,1.91810294]
[1757487902696,0.514,4315.0,4314.9,1.96156542]
[1757487903796,0.2982,4315.0,4314.9,1.96156542]
[1757487903996,0.514,4315.4,4315.3,0.6998]
[1757487904496,0.7233,4315.4,4315.3,0.6998]
[1757487905200,0.2982,4315.4,4315.3,0.6998]
[1757487905895,0.2982,4315.9,4315.3,0.406]
[1757487906093,0.514,4315.9,4315.8,1.72856542]
[1757487906294,0.7233,4315.9,4315.8,1.72856542]
[1757487906493,0.7233,4315.9,4315.8,1.43476542]
[1757487908302,0.7233,4315.9,4315.8,0.406]
[1757487909301,0.7233,4315.9,4315.8,0.6998]
[1757487911304,0.7233,4315.9,4315.8,0.406]
[1757487912398,0.7233,4315.9,4315.8,0.2114]
[1757487914004,0.7233,4315.9,4315.8,0.6998]
[1757487914808,0.2982,4315.9,4315.8,0.6998]
[1757487915101,0.2982,4316.4,4315.8,0.406]
[1757487915298,0.7233,4316.4,4316.3,0.2114]
[1757487915499,1.3020423,4316.4,4316.3,0.2114]
[1757487928009,1.30188382,4316.4,4316.3,0.2114]
[1757487928904,0.7233,4316.4,4316.3,0.2114]
[1757487931211,1.30191856,4316.4,4316.3,0.2114]
[1757487933113,1.30196587,4316.4,4316.3,0.2114]
[1757487933813,1.30196587,4316.4,4315.9,0.2932]
[1757487934014,0.8516,4316.0,4315.9,0.7105]
[1757487934915,0.8516,4316.0,4315.9,0.4173]
[1757487936619,0.8516,4316.0,4315.9,0.2105]
[1757487937914,0.8516,4316.0,4315.6,0.233]
[1757487938315,0.8516,4316.0,4315.4,0.2932]
[1757487938516,0.8516,4315.5,4315.4,0.2105]
[1757487939220,0.4122,4315.2,4315.1,0.7105]
[1757487939424,0.7348,4315.2,4315.1,0.9435]
[1757487945233,0.7348,4315.2,4315.1,0.7105]
[1757487945633,0.7348,4315.2,4315.1,0.9435]
[1757487945835,0.7348,4315.2,4315.1,0.7105]
[1757487946036,0.7348,4315.2,4315.1,0.9435]
[1757487946933,0.7348,4315.2,4315.1,0.7105]
[1757487947134,0.7348,4315.2,4315.1,0.9435]
[1757487948338,0.7348,4315.2,4315.1,0.6503]
[1757487948539,0.7348,4315.2,4315.1,0.947]
[1757487949634,0.534,4315.2,4315.1,0.947]
[1757487958435,0.534,4315.2,4315.1,0.714]
[1757487958641,0.534,4315.2,4315.1,2.16541572]
[1757487959639,0.3226,4315.2,4315.1,2.16541572]
[1757487959844,0.7137,4315.9,4315.8,0.2136]
[1757487960036,0.7137,4315.9,4315.8,0.4466]
[1757487960438,0.7137,4315.9,4315.8,0.9435]
[1757487961443,0.5073,4315.9,4315.8,0.9435]
[1757487961633,0.2975,4315.9,4315.8,0.9435]
[1757487961831,0.3366,4316.5,4316.4,0.4138]
[1757487962034,0.3366,4316.5,4316.4,2.16191572]
[1757487962436,0.6341,4316.5,4316.4,2.16191572]
[1757487964148,0.8405,4316.5,4316.4,2.16191572]
[1757487965144,0.8405,4316.5,4316.4,1.86521572]
[1757487966144,0.8405,4316.5,4316.4,0.4466]
[1757487968453,0.8405,4316.5,4316.4,1.47514308]
[1757487970052,0.8405,4316.5,4316.4,1.67534308]
[1757487970252,0.2975,4316.5,4316.4,1.97204308]
[1757487971453,0.5073,4316.5,4316.4,1.97204308]
[1757487972452,0.8421,4316.5,4316.4,1.97204308]
[1757487975452,0.5073,4316.5,4316.4,1.97204308]
[1757487975656,0.2975,4316.5,4316.4,1.97204308]
[1757487976651,0.7137,4317.4,4317.3,0.4138]
[1757487982254,0.2962,4317.3,4317.1,2.85384794]
[1757487982558,0.4064,4317.2,4317.1,1.82530486]
[1757487982759,0.7026,4317.2,4316.5,0.2952]
[1757487982953,0.2962,4316.9,4316.6,0.233]
[1757487983153,0.4064,4316.7,4316.6,2.44257252]
[1757487983357,0.7026,4316.7,4316.6,2.44257252]
[1757487983560,0.7026,4316.7,4316.6,2.25364295]
[1757487986260,0.7026,4316.7,4316.6,2.43828203]
[1757487986660,0.7026,4316.7,4316.6,2.25364295]
[1757487988861,0.7026,4316.7,4316.6,1.82514295]
[1757487989060,0.7026,4316.7,4316.6,0.233]
[1757487990260,0.7026,4316.7,4316.6,0.4285]
[1757487990567,0.7026,4316.7,4316.6,0.9276]
[1757487991569,0.7026,4316.7,4316.6,2.76942107]
[1757487991768,0.7026,4316.7,4316.6,0.9276]
[1757487993463,0.7026,4316.7,4316.6,0.233]
[1757487993768,0.1276,4316.5,4316.2,2.0772908]
[1757487993968,0.7026,4316.4,4316.3,0.4285]
[1757487994469,0.7026,4316.4,4316.3,0.61485897]
[1757487995168,0.7026,4316.4,4316.3,1.11395897]
[1757487995370,0.5043,4316.4,4316.3,1.11395897]
[1757487995771,0.5043,4316.4,4316.3,2.97684983]
[1757487995971,0.5043,4316.4,4316.3,0.9276]
[1757487997974,0.5043,4316.4,4316.3,1.11168427]
[1757487998776,0.7026,4316.4,4316.3,0.81648427]
[1757487999074,0.7026,4316.4,4316.3,0.37958427]
[1757487999276,0.7026,4316.4,4316.3,2.03604093]
[1757487999477,0.1276,4316.0,4315.8,2.0772908]
[1757487999681,0.8302,4316.0,4315.9,0.233]
[1757487999877,0.8302,4316.0,4315.9,2.10718406]
[1757488000079,0.8302,4316.0,4315.9,0.233]
[1757488001075,0.8302,4316.0,4315.9,0.4285]
[1757488002684,0.8302,4316.0,4315.9,0.233]
[1757488004390,0.534,4316.0,4315.7,1.02854308]
[1757488004589,0.7026,4315.8,4315.7,1.22404308]
[1757488004790,0.7026,4315.8,4315.7,1.45704308]
[1757488005590,0.7026,4315.8,4315.7,1.26154308]
[1757488006791,0.7026,4315.8,4315.7,1.45704308]
[1757488007489,0.7026,4315.8,4315.7,1.22404308]
[1757488013294,0.7026,4315.8,4315.7,1.72294308]
[1757488013693,0.7026,4315.8,4315.7,3.54346216]
[1757488014494,0.1276,4316.5,4315.8,0.2933]
[1757488014694,0.94179,4316.4,4316.0,0.2933]
[1757488014997,0.94179,4316.4,4315.7,2.84906216]
[1757488014998,0.5056,4315.9,4315.8,0.711]
[1757488016291,0.7101,4315.9,4315.8,0.711]
[1757488016594,0.7101,4315.9,4315.8,0.4177]
[1757488016990,0.7101,4315.9,4315.8,0.2121]
[1757488019195,0.7101,4315.9,4315.8,0.4451]
[1757488019392,0.2959,4315.8,4315.7,2.84906216]
[1757488019599,0.7101,4315.8,4315.7,3.08206216]
[1757488020293,0.7101,4315.8,4315.7,3.29416216]
[1757488020695,0.7101,4315.8,4315.7,3.49976216]
[1757488020889,0.2959,4315.7,4315.2,2.3705908]
[1757488021095,0.7101,4315.3,4315.2,0.2121]
[1757488021297,0.7101,4315.3,4315.2,0.4451]
[1757488021593,0.7101,4315.3,4315.2,1.97254308]
[1757488022199,0.7101,4315.3,4315.2,3.85945114]
[1757488022498,0.7101,4315.3,4315.2,4.04142433]
[1757488023003,0.7101,4315.3,4315.2,3.56615114]
[1757488023388,0.7101,4315.3,4315.2,2.53760806]
[1757488023590,1.73864308,4315.3,4315.2,1.88690806]
[1757488023802,1.73864308,4315.3,4315.0,0.233]
[1757488024102,0.7101,4315.3,4315.2,0.2121]
[1757488024801,0.7101,4315.3,4315.2,2.11197949]
[1757488025001,0.7101,4315.3,4315.2,2.61087949]
[1757488025502,0.7101,4315.3,4315.2,2.31757949]
[1757488026102,0.7101,4315.3,4315.2,0.4177]
[1757488026602,0.7101,4315.3,4315.2,0.2121]
[1757488027502,0.7101,4315.3,4315.0,0.233]
[1757488027796,0.7101,4315.3,4314.3,33.6713]
[1757488027797,0.1222,4315.0,4314.3,33.6713]
[1757488027999,0.1222,4315.0,4313.9,2.92523507]
[1757488028000,0.2959,4314.4,4314.2,2.0772908]
[1757488028197,0.4142,4314.4,4314.0,2.0772908]
[1757488028500,0.7101,4314.1,4314.0,0.4451]
[1757488029203,0.1222,4314.5,4313.6,2.28824569]
[1757488029204,0.2097,4313.7,4313.6,2.28824569]
[1757488029400,0.7101,4313.7,4313.6,2.58154569]
[1757488029602,0.7101,4313.7,4313.6,2.28824569]
[1757488030001,0.7101,4313.7,4313.6,0.4177]
[1757488030699,0.7101,4313.7,4313.6,0.2121]
[1757488031200,0.1222,4313.5,4313.4,0.2121]
[1757488031396,0.8323,4313.5,4313.4,0.2121]
[1757488032707,0.8323,4313.5,4313.4,0.4177]
[1757488033008,0.8323,4313.5,4313.4,0.711]
[1757488034106,0.5056,4313.5,4313.4,0.711]
[1757488034311,0.2959,4313.9,4313.4,0.4177]
[1757488034608,0.8323,4314.0,4313.9,0.2121]
[1757488035305,0.3319,4313.5,4313.4,0.711]
[1757488035609,0.6278,4313.5,4313.4,0.711]
[1757488036907,0.2959,4313.5,4313.4,0.711]
[1757488037216,0.8517,4314.0,4313.9,0.4225]
[1757488037910,0.8517,4314.0,4313.9,0.2142]
[1757488038109,0.8517,4314.0,4313.5,0.3139]
[1757488039406,0.8517,4314.0,4313.3,0.233]
[1757488039606,0.8517,4314.0,4313.4,0.3139]
[1757488045715,0.8517,4314.0,4313.9,0.2142]
[1757488046215,0.8517,4314.0,4313.9,0.7364]
[1757488046415,0.3109,4314.0,4313.9,0.7364]
[1757488047118,0.8517,4314.5,4314.4,0.7364]
[1757488047312,1.40160517,4315.5,4314.4,0.4225]
[1757488047313,0.3109,4314.9,4314.4,0.4225]
[1757488047620,0.5408,4315.0,4314.9,0.7364]
[1757488048111,0.8517,4315.0,4314.9,0.7364]
[1757488049220,0.5161,4315.0,4314.9,0.7364]
[1757488049624,0.634,4315.0,4314.9,0.7364]
[1757488050125,0.5161,4315.0,4314.9,0.7364]
[1757488050810,0.7295,4315.9,4315.8,0.2142]
[1757488051012,0.1179,4315.5,4315.4,0.2142]
[1757488051214,0.5365,4315.5,4315.4,0.2142]
[1757488051615,0.8474,4315.5,4315.4,0.2142]
[1757488052015,0.8474,4315.5,4315.4,0.4225]
[1757488052417,0.8474,4315.5,4315.4,0.7364]
[1757488053421,0.8474,4315.5,4315.4,0.4225]
[1757488053919,0.8474,4315.5,4315.4,0.2142]
[1757488055722,0.8474,4315.5,4314.3,0.3139]
[1757488055723,0.1179,4314.5,4314.3,0.3139]
[1757488055920,0.2052,4314.1,4314.0,0.7364]
[1757488056425,0.5161,4314.1,4314.0,0.7364]
[1757488058820,0.3109,4314.4,4314.1,0.3139]
[1757488059015,0.3109,4314.4,4314.3,0.7364]
[1757488059214,0.1179,4315.0,4314.9,0.2142]
[1757488059419,0.5365,4315.0,4314.9,0.7364]
[1757488059827,0.5161,4315.0,4314.9,0.7364]
[1757488060029,0.3109,4315.0,4314.9,0.7364]
[1757488060226,0.5161,4315.0,4314.9,0.7364]
[1757488061026,0.3109,4315.0,4314.9,0.7364]
[1757488062628,0.5161,4315.5,4315.4,0.7364]
[1757488062827,0.5161,4315.5,4315.4,1.95610517]
[1757488065428,0.634,4315.5,4315.4,1.95610517]
[1757488065630,0.8474,4315.5,4315.4,0.4225]
[1757488065826,0.5365,4315.5,4314.9,0.4799]
[1757488066023,0.5161,4315.0,4314.9,0.9024]
[1757488068826,0.8549,4315.0,4314.9,0.7364]
[1757488069022,0.8508,4315.0,4314.9,0.233]
[1757488069227,0.8508,4315.0,4314.9,0.434]
[1757488070437,0.8508,4315.0,4314.9,0.632]
[1757488070637,0.8508,4315.0,4314.9,0.9372]
[1757488072437,0.8508,4315.0,4314.9,0.399]
[1757488072932,0.3068,4315.4,4315.0,0.3052]
[1757488073138,0.7268,4315.4,4315.3,0.201]
[1757488073540,0.7268,4315.4,4315.3,0.7042]
[1757488077135,0.5138,4315.4,4315.3,0.7042]
[1757488077640,0.7268,4315.4,4315.3,0.7042]
[1757488078143,0.7268,4315.4,4315.3,0.399]
[1757488078444,0.8526,4315.0,4314.9,0.201]
[1757488078743,0.8526,4315.0,4314.9,0.434]
[1757488080946,0.5458,4315.0,4314.6,2.07362622]
[1757488081253,0.7268,4314.8,4314.7,0.233]
[1757488081642,0.7268,4314.8,4314.7,0.434]
[1757488082345,0.7268,4314.8,4314.7,0.632]
[1757488083051,0.7268,4314.8,4314.7,0.233]
[1757488084952,0.7268,4314.4,4314.3,0.233]
[1757488086541,0.7268,4314.4,4314.0,3.29333139]
[1757488086743,0.4326,4314.0,4313.8,33.382]
[1757488086947,0.7268,4313.9,4313.8,33.615]
[1757488091757,0.7268,4313.9,4313.8,33.9202]
[1757488099159,0.3068,4313.9,4313.8,33.9202]
[1757488101464,0.1258,4314.5,4314.4,0.2127]
[1757488101656,0.8377,4314.5,4314.4,0.4104]
[1757488102357,0.8377,4314.5,4314.4,0.2127]
[1757488102558,0.8377,4314.5,4314.2,0.233]
[1757488106154,0.8377,4314.5,4314.4,0.2127]
[1757488107362,0.8377,4314.5,4314.2,0.233]
[1757488110365,0.8332,4314.0,4313.9,1.47549537]
[1757488110560,0.8332,4314.0,4313.9,1.97129537]
[1757488121471,0.8332,4314.0,4313.9,0.4104]
[1757488121673,0.4106,4313.7,4313.6,2.30662622]
[1757488121873,0.7119,4313.7,4313.6,0.7085]
[1757488122075,0.7119,4313.7,4313.6,0.9415]
[1757488123472,0.7119,4313.7,4313.6,0.6434]
[1757488123968,0.7119,4313.7,4313.6,0.9415]
[1757488126476,0.7119,4313.7,4313.6,0.2127]
[1757488127174,0.7119,4313.7,4313.6,0.7032]
[1757488129580,0.4965,4313.7,4313.6,0.7032]
[1757488134981,0.3013,4313.7,4313.6,0.7032]
[1757488136175,0.3119,4314.4,4314.3,0.4153]
[1757488136376,0.3119,4314.4,4314.3,1.73789537]
[1757488137079,0.8525,4315.0,4314.9,0.4153]
[1757488137581,0.8525,4315.0,4314.9,0.2122]
[1757488138080,0.1258,4315.0,4314.9,0.7081]
[1757488138274,0.3119,4315.4,4315.0,0.2928]
[1757488138481,0.5219,4315.4,4315.3,1.73789537]
[1757488140073,0.3119,4315.4,4315.3,1.73789537]
[1757488140280,0.3119,4315.9,4315.5,0.0627]
[1757488140483,0.3119,4315.9,4315.8,0.7081]
[1757488140779,0.5219,4315.9,4315.8,0.7081]
[1757488141171,0.3119,4315.9,4315.8,0.7081]
[1757488141375,0.5219,4316.4,4316.3,0.4153]
[1757488141576,0.5219,4316.4,4316.3,0.7081]
[1757488141873,0.7267,4316.4,4316.3,0.7081]
[1757488142282,0.7267,4316.4,4316.3,0.4153]
[1757488142978,0.7267,4316.4,4316.3,0.7081]
[1757488143180,0.5219,4316.4,4316.3,0.7081]
[1757488144581,0.5219,4316.4,4316.3,1.73789537]
[1757488144878,0.3119,4316.4,4316.3,1.73789537]
[1757488146175,0.5219,4316.9,4316.8,0.2122]
[1757488146380,0.5219,4316.9,4316.8,0.7081]
[1757488147280,0.7267,4316.9,4316.8,0.4153]
[1757488149978,0.7267,4316.9,4316.8,0.7081]
[1757488152183,0.3119,4316.9,4316.8,0.7081]
[1757488152483,0.1273,4317.5,4316.9,0.2928]
[1757488152785,0.5421,4317.5,4317.4,0.2122]
[1757488153288,0.854,4317.5,4317.4,0.7081]
[1757488153482,0.5219,4317.5,4317.4,0.7081]
[1757488154079,0.5219,4317.5,4317.4,0.89587818]
[1757488154988,0.5219,4317.5,4317.4,0.7081]
[1757488156687,0.5219,4317.5,4317.4,0.8913104]
[1757488157688,0.5219,4317.5,4317.4,0.7081]
[1757488158894,0.5219,4317.5,4317.4,0.88923918]
[1757488160685,0.3119,4317.5,4317.4,0.88923918]
[1757488163090,0.5144,4317.5,4317.4,0.7081]
[1757488163290,0.6403,4317.5,4317.4,0.7081]
[1757488163792,0.6403,4317.5,4317.4,0.8960211]
[1757488163991,0.6403,4317.5,4317.4,0.7081]
[1757488166688,0.1259,4317.0,4316.9,0.5088]
[1757488166884,0.2918,4317.3,4317.2,0.7096]
[1757488167490,0.1273,4318.5,4317.2,0.7096]
[1757488167691,0.1273,4318.5,4317.3,0.3096]
[1757488167891,0.6949,4317.9,4317.8,0.1992]
[1757488170396,0.6949,4317.9,4317.8,0.7096]
[1757488170697,0.6949,4317.9,4317.8,0.4]
[1757488171193,0.1273,4318.5,4317.8,1.9272587]
[1757488171400,0.6949,4318.4,4318.3,0.1992]
[1757488176204,1.27526945,4318.4,4318.3,0.1992]
[1757488179509,1.27526945,4318.4,4318.3,0.7096]
[1757488179510,0.6949,4318.4,4318.3,0.7096]
[1757488179812,0.4943,4318.4,4318.3,0.7096]
[1757488180010,0.2918,4318.4,4318.3,0.7096]
[1757488180207,0.8208,4319.0,4318.9,0.1992]
[1757488184407,0.6949,4318.9,4318.8,0.1992]
[1757488192225,0.6949,4318.9,4318.5,0.3096]
[1757488194422,0.8352,4318.5,4318.4,0.2143]
[1757488194623,0.8352,4318.5,4318.4,0.4111]
[1757488194833,0.8352,4318.5,4318.4,0.7087]
[1757488195526,0.8352,4318.5,4317.6,2.07512469]
[1757488195527,0.1248,4318.0,4317.9,0.2143]
[1757488195729,0.5302,4318.0,4317.9,0.2143]
[1757488196121,0.8352,4318.0,4317.9,0.2143]
[1757488197219,0.8352,4318.0,4317.9,0.4111]
[1757488197728,0.305,4318.0,4317.9,0.7087]
[1757488198027,0.5088,4318.0,4317.9,0.7087]
[1757488198522,0.1248,4318.5,4317.9,7.97662888]
[1757488198730,0.6336,4318.5,4318.4,1.9263587]
[1757488198930,0.6336,4318.5,4318.4,2.1593587]
[1757488199126,0.8352,4318.5,4318.4,2.1593587]
[1757488200727,0.5088,4318.5,4318.4,2.1593587]
[1757488200928,0.305,4318.5,4318.4,2.1593587]
[1757488205628,0.1259,4319.0,4318.4,2.1593587]
[1757488205834,0.7104,4318.9,4318.8,0.4111]
[1757488206939,0.7104,4318.9,4318.8,0.2143]
[1757488207134,0.7104,4318.9,4318.5,0.2976]
[1757488207335,0.8352,4318.5,4318.4,2.1593587]
[1757488211430,0.5088,4318.5,4318.4,1.9263587]
[1757488211631,0.5088,4318.5,4318.4,2.1593587]
[1757488212340,0.5088,4318.5,4318.4,1.96919804]
[1757488213336,0.305,4318.5,4318.4,1.96919804]
[1757488213641,0.305,4318.8,4318.7,0.7087]
[1757488213841,0.305,4318.8,4318.7,1.73619804]
[1757488214043,0.5088,4318.8,4318.7,1.73619804]
[1757488218046,0.305,4318.8,4318.7,1.73619804]
[1757488218244,0.4998,4318.8,4318.7,1.73619804]
[1757488220353,0.7075,4318.8,4318.7,1.73619804]
[1757488223155,0.7075,4318.8,4318.7,1.43859804]
[1757488223461,0.8429,4318.5,4318.4,0.7088]
[1757488223658,0.8429,4318.5,4318.4,0.9418]
[1757488224656,0.8429,4318.5,4318.4,1.96929804]
[1757488227554,0.3145,4318.5,4318.4,1.96929804]
[1757488228064,0.1259,4319.0,4318.4,1.96929804]
[1757488228065,0.3207,4319.0,4318.9,0.4086]
[1757488228364,0.5284,4319.0,4318.9,1.96929804]
[1757488228761,0.8429,4319.0,4318.9,1.66909804]
[1757488229664,0.8429,4319.0,4318.9,1.96929804]
[1757488231467,0.5093,4319.0,4318.9,1.96929804]
[1757488232068,0.8429,4319.0,4318.9,1.96929804]
[1757488233870,0.8429,4319.0,4318.9,1.66909804]
[1757488234267,0.8429,4319.0,4318.9,1.96929804]
[1757488234872,0.8429,4319.0,4318.9,0.6416]
[1757488235078,0.8429,4319.0,4318.9,0.4416]
[1757488235870,0.8429,4319.0,4318.9,0.9418]
[1757488238766,0.3145,4319.0,4318.9,0.9418]
[1757488238970,0.5093,4319.0,4318.9,0.9418]
[1757488239276,0.3145,4319.4,4318.9,0.6416]
[1757488239465,0.8429,4319.5,4319.4,0.2086]
[1757488239668,0.8429,4319.5,4319.4,0.4416]
[1757488242374,0.8429,4319.5,4319.4,0.62665617]
[1757488243271,0.8429,4319.5,4319.4,1.12685617]
[1757488247478,0.8429,4319.5,4319.4,0.82665617]
[1757488251079,0.8429,4319.5,4318.6,2.07512469]
[1757488251287,0.5111,4318.8,4318.7,1.15473]
[1757488251583,0.7253,4319.4,4319.3,0.1957]
[1757488251785,0.5111,4319.4,4319.3,1.95069804]
[1757488253886,0.3004,4319.4,4319.3,1.95069804]
[1757488257284,0.5111,4319.4,4319.3,1.95069804]
[1757488257683,0.7253,4319.4,4319.3,1.95069804]
[1757488264001,0.3004,4319.4,4319.3,0.9232]
[1757488264196,0.3004,4319.4,4319.3,1.95069804]
[1757488265091,0.5111,4319.4,4319.3,1.95069804]
[1757488265491,0.3004,4319.4,4319.3,1.95069804]
[1757488265790,0.7253,4319.8,4319.7,0.1957]
[1757488265994,0.7253,4319.8,4319.7,1.22319804]
[1757488266499,0.5111,4319.8,4319.7,1.71769804]
[1757488267598,0.7253,4319.8,4319.7,1.71769804]
[1757488272299,0.7253,4319.8,4319.7,1.90631808]
[1757488274103,0.7253,4319.8,4319.7,2.13931808]
[1757488274505,0.5111,4319.8,4319.7,2.13931808]
[1757488274705,0.3004,4319.8,4319.7,2.13931808]
[1757488275599,0.3004,4320.5,4320.4,0.3956]
[1757488275804,0.3004,4320.5,4320.4,1.90631808]
[1757488276108,0.5111,4320.5,4320.4,1.90631808]
[1757488276403,0.8505,4320.5,4320.4,0.6902]
[1757488276792,0.8505,4320.5,4320.4,2.51688519]
[1757488276997,0.8505,4320.5,4320.4,2.22228519]
[1757488281308,0.8505,4320.5,4320.4,2.51588519]
[1757488283207,0.8505,4320.5,4320.4,3.73200327]
[1757488287112,0.8505,4320.5,4320.4,3.67040327]
[1757488288309,0.8505,4320.5,4320.4,3.43840327]
[1757488288510,0.8505,4320.5,4320.4,3.67040327]
[1757488288706,0.8505,4320.5,4320.4,3.96400327]
[1757488289906,0.8505,4320.5,4320.4,2.51588519]
[1757488290210,0.8505,4320.5,4320.4,0.232]
[1757488291809,0.8505,4320.5,4320.4,0.4456]
[1757488292708,0.6363,4320.5,4320.4,0.9478]
[1757488296608,0.8426,4320.5,4320.4,0.9478]
[1757488297415,0.8426,4320.5,4320.4,0.6542]
[1757488298517,0.8426,4320.5,4320.4,0.4456]
[1757488299612,0.8426,4320.5,4320.4,0.6542]
[1757488299916,0.8426,4320.5,4320.4,0.9478]
[1757488300719,0.5111,4320.5,4320.4,0.9478]
[1757488301525,0.3004,4320.5,4320.4,0.9478]
[1757488302130,0.4979,4320.5,4320.4,0.9478]
[1757488309535,0.3004,4320.5,4320.4,0.9478]
[1757488309928,0.4978,4320.5,4320.4,0.9478]
[1757488310431,0.3004,4320.5,4320.4,0.9478]
[1757488310632,0.5008,4320.9,4320.8,0.4106]
[1757488310934,0.5008,4320.9,4320.8,2.17451808]
[1757488318535,0.7054,4320.9,4320.8,2.17451808]
[1757488320430,0.7054,4320.9,4320.8,1.94251808]
[1757488320631,0.7054,4320.9,4320.8,1.42321808]
[1757488320933,0.7054,4320.9,4320.4,0.3158]
[1757488320934,0.8286,4320.5,4320.4,0.7264]
[1757488321131,0.8286,4320.5,4320.4,0.9584]
[1757488321331,0.7054,4320.5,4320.4,0.9584]
[1757488321733,0.5008,4320.5,4320.4,0.9584]
[1757488323738,0.3034,4320.5,4320.4,0.9584]
[1757488324135,0.1252,4321.0,4320.4,0.6426]
[1757488324332,0.5272,4321.0,4320.9,1.94251808]
[1757488324532,0.5272,4321.0,4320.9,2.17451808]
[1757488324834,0.5272,4321.0,4320.9,1.85871808]
[1757488324835,0.8306,4321.0,4320.9,1.85871808]
[1757488326938,0.8306,4321.0,4320.9,1.65521808]
[1757488327135,0.1232,4320.5,4320.3,3.08469031]
[1757488327337,0.402,4320.4,4320.3,3.08469031]
[1757488327641,0.7054,4320.4,4320.3,3.52379031]
[1757488327837,0.7054,4320.4,4320.3,4.04309031]
[1757488329435,0.7054,4320.4,4320.3,3.72729031]
[1757488329832,0.7054,4320.4,4320.3,4.04309031]
[1757488330542,0.7054,4320.4,4320.3,3.72729031]
[1757488331245,0.7054,4320.4,4320.3,4.04309031]
[1757488331745,0.5008,4320.4,4320.3,4.04309031]
[1757488332045,0.3034,4320.4,4320.3,4.04309031]
[1757488332944,0.5008,4320.4,4320.3,4.04309031]
[1757488333143,0.7054,4320.4,4320.3,3.08469031]
[1757488333344,0.7054,4320.4,4320.3,2.30767223]
[1757488333744,0.3034,4320.4,4320.3,2.82697223]
[1757488334346,0.3034,4320.4,4320.3,3.85353224]